[Event "MCR rapid mládeže 2023 U16"]
[Site "Harachov, Czech Republic"]
[Date "2023.09.09"]
[Round "5.35"]
[White "Dlouhy, Martin"]
[Black "Vydra, David"]
[Result "1/2-1/2"]
[TimeControl "20min+5s/move"]
[WhiteElo "1193"]
[BlackElo "1137"]

1. d4 {[%clk 00:20:05]} {[%emt 00:20:15]} Nf6 {[%clk 00:20:05]} {[%emt
00:00:03]} 2. c4 {[%emt 00:00:05]} e6 {[%clk 00:20:05]} {[%emt 00:00:03]} 3.
Bg5 {[%clk 00:20:05]} {[%emt 00:00:04]} Bb4+ {[%clk 00:20:05]} {[%emt
00:00:18]} 4. Nc3 {[%clk 00:20:05]} {[%emt 00:00:04]} b6 {[%clk 00:20:05]}
{[%emt 00:00:13]} 5. e4 {[%clk 00:20:05]} {[%emt 00:00:11]} Be7 {[%clk
00:20:01]} {[%emt 00:01:13]} 6. Bxf6 {[%clk 00:19:59]} {[%emt 00:00:11]} Bxf6
{[%clk 00:20:00]} {[%emt 00:00:05]} 7. e5 {[%clk 00:19:59]} {[%emt 00:00:06]}
Be7 {[%clk 00:19:52]} {[%emt 00:00:12]} 8. Nf3 {[%clk 00:19:56]} {[%emt
00:00:09]} Bb7 {[%clk 00:19:53]} {[%emt 00:00:03]} 9. Bd3 {[%clk 00:20:00]}
{[%emt 00:00:02]} O-O {[%clk 00:19:50]} {[%emt 00:00:08]} 10. O-O {[%clk
00:20:02]} {[%emt 00:00:03]} d6 {[%clk 00:19:42]} {[%emt 00:00:12]} 11. exd6
{[%clk 00:20:04]} {[%emt 00:00:04]} Bxd6 {[%clk 00:19:41]} {[%emt 00:00:06]} 12.
Be4 {[%clk 00:19:59]} {[%emt 00:00:09]} Bxe4 {[%clk 00:19:28]} {[%emt
00:00:19]} 13. Nxe4 {[%clk 00:20:03]} {[%emt 00:00:01]} Bf4 {[%clk 00:18:37]}
{[%emt 00:00:55]} 14. Qe2 {[%clk 00:19:05]} {[%emt 00:01:04]} Nc6 {[%clk
00:17:39]} {[%emt 00:01:02]} 15. Rad1 {[%clk 00:19:02]} {[%emt 00:00:08]} Qe7
{[%clk 00:17:24]} {[%emt 00:00:20]} 16. Rfe1 {[%clk 00:18:54]} {[%emt
00:00:13]} f5 {[%clk 00:16:45]} {[%emt 00:00:45]} 17. Nc3 {[%clk 00:18:57]}
{[%emt 00:00:02]} Rf6 {[%clk 00:16:12]} {[%emt 00:00:38]} 18. d5 {[%clk
00:18:14]} {[%emt 00:00:48]} Nd8 {[%clk 00:15:34]} {[%emt 00:00:42]} 19. g3
{[%clk 00:17:59]} {[%emt 00:00:22]} Bd6 {[%clk 00:15:19]} {[%emt 00:00:17]} 20.
Nb5 {[%clk 00:17:57]} {[%emt 00:00:09]} f4 {[%clk 00:14:36]} {[%emt 00:00:48]}
21. a3 {[%clk 00:17:19]} {[%emt 00:00:43]} fxg3 {[%clk 00:14:20]} {[%emt
00:00:21]} 22. fxg3 {[%clk 00:17:18]} {[%emt 00:00:06]} Bc5+ {[%clk 00:13:51]}
{[%emt 00:00:34]} 23. Kg2 {[%clk 00:17:15]} {[%emt 00:00:08]} a6 {[%clk
00:13:43]} {[%emt 00:00:13]} 24. Nc3 {[%clk 00:17:13]} {[%emt 00:00:07]} Qf7
{[%clk 00:13:15]} {[%emt 00:00:33]} 25. Ne4 {[%clk 00:17:01]} Rh6 {[%clk
00:13:10]} {[%emt 00:00:27]} 26. Nxc5 bxc5 27. Ng5 {[%clk 00:16:48]} {[%emt
00:00:09]} Qf5 {[%clk 00:12:34]} {[%emt 00:00:39]} 28. Nxe6 {[%emt 00:00:35]}
Qh3+ 29. Kg1 {[%clk 00:16:42]} {[%emt 00:00:01]} Nxe6 {[%clk 00:11:46]} {[%emt
00:00:39]} 30. dxe6 {[%clk 00:16:43]} Re8 {[%clk 00:11:46]} 31. e7 {[%emt
00:02:17]} Rxe7 {[%clk 00:09:41]} {[%emt 00:00:04]} 32. Qxe7 Qxh2+ {[%clk
00:09:43]} 33. Kf1 {[%clk 00:16:41]} {[%emt 00:00:10]} Rf6+ {[%clk 00:09:37]}
{[%emt 00:00:12]} 34. Qxf6 {[%clk 00:16:37]} {[%emt 00:00:10]} gxf6 {[%clk
00:09:40]} {[%emt 00:00:02]} 35. Rd3 {[%clk 00:16:03]} {[%emt 00:00:34]} Qh1+
{[%clk 00:08:59]} {[%emt 00:00:51]} 36. Ke2 {[%clk 00:16:04]} {[%emt 00:00:03]}
Qe4+ {[%clk 00:08:59]} {[%emt 00:00:06]} 37. Kd2 {[%clk 00:16:00]} {[%emt
00:00:06]} Qxc4 {[%clk 00:08:37]} {[%emt 00:00:29]} 38. Rd7 {[%clk 00:15:44]}
{[%emt 00:00:21]} Kf8 {[%clk 00:08:16]} {[%emt 00:00:27]} 39. Re3 {[%clk
00:15:13]} {[%emt 00:00:36]} Qb5 {[%clk 00:07:58]} {[%emt 00:00:22]} 40. Rd8+
{[%clk 00:14:51]} {[%emt 00:00:27]} Kf7 {[%clk 00:07:55]} {[%emt 00:00:08]} 41.
Red3 {[%clk 00:14:49]} {[%emt 00:00:07]} Qxb2+ {[%clk 00:07:56]} {[%emt
00:00:04]} 42. Ke3 {[%clk 00:14:49]} {[%emt 00:00:05]} Qe5+ {[%emt 00:00:22]}
43. Kd2 {[%clk 00:14:26]} {[%emt 00:00:18]} Qb2+ {[%clk 00:07:47]} {[%emt
00:00:08]} 44. Ke3 {[%clk 00:14:27]} {[%emt 00:00:03]} Qe5+ {[%clk 00:07:50]}
{[%emt 00:00:03]} 45. Kf2 {[%clk 00:14:27]} {[%emt 00:00:04]} Qf5+ {[%clk
00:07:49]} {[%emt 00:00:07]} 46. Kg2 {[%clk 00:14:24]} {[%emt 00:00:06]} Qe4+
{[%clk 00:07:52]} {[%emt 00:00:04]} 47. Rf3 {[%clk 00:14:21]} {[%emt 00:00:04]}
Qe2+ {[%clk 00:07:49]} {[%emt 00:00:10]} 48. Rf2 {[%clk 00:14:23]} {[%emt
00:00:04]} Qe4+ {[%clk 00:07:48]} {[%emt 00:00:06]} 49. Kh3 {[%clk 00:14:12]}
{[%emt 00:00:11]} Qh1+ {[%clk 00:07:32]} {[%emt 00:00:26]} 50. Rh2 {[%clk
00:14:10]} {[%emt 00:00:07]} Qf1+ {[%clk 00:07:34]} {[%emt 00:00:03]} 51. Kh4
{[%clk 00:14:09]} {[%emt 00:00:03]} Qc4+ {[%clk 00:07:33]} {[%emt 00:00:08]} 52.
g4 {[%clk 00:14:10]} {[%emt 00:00:04]} Qf4 {[%clk 00:07:00]} {[%emt 00:00:39]}
1/2-1/2

[Event "MCR rapid mládeže 2023 U16"]
[Site "Harachov, Czech Republic"]
[Date "2023.09.09"]
[Round "5.36"]
[White "Bukovskij, Dmitri"]
[Black "Fadrny, Jonas"]
[Result "1-0"]
[TimeControl "20min+5s/move"]
[WhiteElo "1291"]
[BlackElo "1096"]

1. c4 {[%emt 00:00:05]} e5 {[%clk 00:20:06]} {[%emt 00:00:03]} 2. g3 {[%clk
00:20:10]} {[%emt 00:00:01]} c6 {[%clk 00:19:50]} {[%emt 00:00:21]} 3. Bg2
{[%clk 00:20:11]} {[%emt 00:00:04]} Bc5 {[%clk 00:19:51]} {[%emt 00:00:02]} 4.
e3 {[%clk 00:20:12]} {[%emt 00:00:06]} d6 {[%clk 00:19:44]} {[%emt 00:00:12]} 5.
d4 {[%clk 00:20:11]} {[%emt 00:00:06]} exd4 {[%clk 00:19:45]} {[%emt 00:00:04]}
6. exd4 {[%clk 00:20:15]} {[%emt 00:00:02]} Bb4+ {[%clk 00:19:43]} {[%emt
00:00:06]} 7. Bd2 {[%clk 00:20:16]} {[%emt 00:00:04]} Bxd2+ {[%clk 00:19:35]}
{[%emt 00:00:13]} 8. Nxd2 {[%clk 00:20:20]} {[%emt 00:00:01]} Nf6 {[%clk
00:19:36]} {[%emt 00:00:04]} 9. Ne2 {[%clk 00:20:21]} {[%emt 00:00:04]} Bf5
{[%clk 00:19:18]} {[%emt 00:00:22]} 10. O-O {[%clk 00:20:10]} {[%emt 00:00:17]}
O-O {[%clk 00:19:17]} {[%emt 00:00:06]} 11. Nf4 {[%clk 00:20:13]} {[%emt
00:00:02]} Nbd7 {[%clk 00:19:10]} {[%emt 00:00:11]} 12. Qb3 {[%clk 00:20:07]}
{[%emt 00:00:12]} Qb6 {[%clk 00:19:01]} {[%emt 00:00:13]} 13. d5 {[%clk
00:19:33]} {[%emt 00:00:39]} Qxb3 {[%clk 00:18:44]} {[%emt 00:00:22]} 14. axb3
{[%clk 00:19:35]} {[%emt 00:00:03]} cxd5 {[%clk 00:18:35]} {[%emt 00:00:15]} 15.
Nxd5 {[%clk 00:19:35]} {[%emt 00:00:05]} Nxd5 {[%clk 00:18:35]} {[%emt
00:00:04]} 16. Bxd5 {[%clk 00:19:38]} {[%emt 00:00:03]} Bh3 {[%clk 00:16:58]}
{[%emt 00:01:41]} 17. Rfe1 {[%clk 00:19:36]} {[%emt 00:00:08]} Nc5 {[%clk
00:15:46]} {[%emt 00:01:16]} 18. Re7 {[%clk 00:19:19]} {[%emt 00:00:23]} Rae8
{[%clk 00:15:11]} {[%emt 00:00:39]} 19. Ree1 {[%clk 00:18:41]} {[%emt
00:00:42]} Rxe1+ {[%clk 00:14:48]} {[%emt 00:00:30]} 20. Rxe1 {[%clk 00:18:43]}
{[%emt 00:00:03]} b6 {[%clk 00:14:48]} {[%emt 00:00:05]} 21. Re7 {[%clk
00:18:27]} {[%emt 00:00:21]} a5 {[%clk 00:12:57]} {[%emt 00:01:56]} 22. Bg2
{[%clk 00:18:20]} {[%emt 00:00:12]} Bxg2 {[%clk 00:12:56]} {[%emt 00:00:06]} 23.
Kxg2 {[%clk 00:18:23]} {[%emt 00:00:01]} g6 {[%clk 00:12:33]} {[%emt 00:00:28]}
24. Ne4 {[%emt 00:00:27]} Nxe4 {[%clk 00:12:22]} {[%emt 00:00:01]} 25. Rxe4
{[%clk 00:18:21]} {[%emt 00:00:02]} Rd8 {[%clk 00:12:13]} {[%emt 00:00:12]} 26.
Rd4 {[%clk 00:18:24]} {[%emt 00:00:03]} Kg7 {[%clk 00:12:03]} {[%emt 00:00:15]}
27. Rd5 {[%clk 00:18:28]} {[%emt 00:00:02]} Kf6 {[%clk 00:11:48]} {[%emt
00:00:18]} 28. Rb5 {[%clk 00:18:32]} {[%emt 00:00:03]} Rb8 {[%clk 00:11:51]}
{[%emt 00:00:01]} 29. b4 {[%clk 00:18:35]} {[%emt 00:00:02]} axb4 {[%clk
00:11:48]} {[%emt 00:00:08]} 30. Rxb4 {[%clk 00:18:39]} {[%emt 00:00:01]} Ke5
{[%clk 00:11:47]} {[%emt 00:00:05]} 31. Kf3 {[%clk 00:18:25]} {[%emt 00:00:19]}
Kd4 {[%clk 00:10:47]} {[%emt 00:01:05]} 32. b3 {[%clk 00:18:26]} {[%emt
00:00:05]} f5 {[%clk 00:09:55]} {[%emt 00:00:57]} 33. Kf4 {[%clk 00:18:19]}
{[%emt 00:00:12]} Kc5 {[%clk 00:08:02]} {[%emt 00:01:55]} 34. Rb5+ {[%clk
00:18:21]} {[%emt 00:00:06]} Kc6 {[%clk 00:08:05]} {[%emt 00:00:02]} 35. Kg5
{[%clk 00:18:22]} {[%emt 00:00:03]} Rf8 {[%clk 00:07:18]} {[%emt 00:00:52]} 36.
Kh6 {[%clk 00:18:24]} {[%emt 00:00:03]} Rf7 {[%clk 00:07:22]} {[%emt 00:00:02]}
37. Rd5 {[%clk 00:18:07]} {[%emt 00:00:22]} f4 {[%clk 00:06:50]} {[%emt
00:00:37]} 38. b4 {[%clk 00:18:06]} {[%emt 00:00:06]} fxg3 {[%clk 00:06:42]}
{[%emt 00:00:12]} 39. fxg3 {[%clk 00:18:09]} {[%emt 00:00:02]} Ra7 {[%clk
00:05:16]} {[%emt 00:01:32]} 40. b5+ {[%clk 00:17:59]} {[%emt 00:00:16]} Kc7
{[%clk 00:05:18]} {[%emt 00:00:02]} 41. Rd4 {[%clk 00:18:02]} {[%emt 00:00:02]}
Ra2 {[%clk 00:04:21]} {[%emt 00:01:02]} 42. Kxh7 {[%clk 00:18:04]} {[%emt
00:00:03]} Rxh2 {[%clk 00:04:23]} {[%emt 00:00:02]} 43. Kxg6 {[%clk 00:18:08]}
{[%emt 00:00:02]} Rg2 {[%clk 00:04:25]} {[%emt 00:00:02]} 44. Rd3 {[%clk
00:18:12]} {[%emt 00:00:02]} Rc2 {[%clk 00:04:23]} {[%emt 00:00:06]} 45. Rd4
{[%clk 00:18:11]} {[%emt 00:00:07]} Rg2 {[%clk 00:04:23]} {[%emt 00:00:04]} 46.
Rg4 {[%clk 00:18:15]} {[%emt 00:00:02]} Kd7 {[%clk 00:03:47]} {[%emt 00:00:42]}
47. Kf5 {[%clk 00:18:15]} {[%emt 00:00:04]} Rf2+ {[%clk 00:03:30]} {[%emt
00:00:21]} 48. Rf4 {[%clk 00:18:19]} {[%emt 00:00:02]} Rg2 {[%clk 00:03:07]}
{[%emt 00:00:28]} 49. g4 {[%clk 00:18:16]} {[%emt 00:00:08]} Ke8 {[%clk
00:03:04]} {[%emt 00:00:06]} 50. g5 {[%clk 00:18:20]} {[%emt 00:00:03]} Rh2
{[%clk 00:02:58]} {[%emt 00:00:11]} 51. g6 {[%clk 00:18:17]} {[%emt 00:00:08]}
Rh8 {[%clk 00:02:59]} {[%emt 00:00:03]} 52. g7 {[%clk 00:18:20]} {[%emt
00:00:03]} Rg8 {[%clk 00:02:25]} {[%emt 00:00:38]} 53. Kf6 {[%clk 00:18:24]}
{[%emt 00:00:02]} d5 {[%clk 00:02:21]} {[%emt 00:00:08]} 54. cxd5 {[%clk
00:18:28]} {[%emt 00:00:02]} Kd7 {[%clk 00:02:07]} {[%emt 00:00:18]} 55. Rh4
{[%clk 00:18:27]} {[%emt 00:00:06]} Rc8 {[%clk 00:01:55]} {[%emt 00:00:17]} 56.
Rh8 {[%clk 00:18:31]} {[%emt 00:00:02]} Rc4 {[%clk 00:01:48]} {[%emt 00:00:12]}
57. g8=Q {[%clk 00:18:14]} {[%emt 00:00:19]} Rf4+ {[%clk 00:01:37]} {[%emt
00:00:18]} 58. Ke5 {[%clk 00:18:15]} {[%emt 00:00:03]} Rf5+ {[%clk 00:01:03]}
{[%emt 00:00:38]} 59. Kxf5 {[%clk 00:18:19]} {[%emt 00:00:03]} Kc7 {[%clk
00:01:01]} {[%emt 00:00:07]} 60. Qc8+ {[%clk 00:18:20]} {[%emt 00:00:04]} Kd6
{[%clk 00:01:03]} {[%emt 00:00:03]} 61. Qc6+ {[%clk 00:18:22]} {[%emt
00:00:04]} Ke7 {[%clk 00:01:04]} {[%emt 00:00:02]} 62. Rh7+ {[%clk 00:18:26]}
{[%emt 00:00:02]} Kf8 {[%clk 00:01:07]} {[%emt 00:00:02]} 63. Qc8# {[%clk
00:18:29]} {[%emt 00:00:02]} 1-0

[Event "MCR rapid mládeže 2023 U16"]
[Site "Harachov, Czech Republic"]
[Date "2023.09.09"]
[Round "5.37"]
[White "Najdkova, Laura"]
[Black "Martikanova, Amalie"]
[Result "0-1"]
[TimeControl "20min+5s/move"]
[WhiteElo "1331"]
[BlackElo "1107"]

1. e4 {[%clk 00:20:09]} {[%emt 00:00:14]} d5 {[%clk 00:20:09]} {[%emt
00:00:02]} 2. exd5 {[%clk 00:20:12]} {[%emt 00:00:03]} Nf6 {[%clk 00:20:13]} 3.
d4 {[%clk 00:19:59]} {[%emt 00:00:19]} Nxd5 {[%clk 00:20:16]} {[%emt 00:00:02]}
4. Nf3 {[%clk 00:19:27]} {[%emt 00:00:36]} Nc6 {[%clk 00:20:11]} {[%emt
00:00:09]} 5. Bb5 {[%clk 00:18:28]} {[%emt 00:01:05]} Bd7 {[%clk 00:19:07]}
{[%emt 00:01:09]} 6. O-O {[%clk 00:17:58]} {[%emt 00:00:34]} a6 {[%clk
00:18:48]} {[%emt 00:00:25]} 7. Ba4 {[%clk 00:17:57]} {[%emt 00:00:06]} e6
{[%clk 00:17:07]} {[%emt 00:01:46]} 8. Nc3 {[%clk 00:17:27]} {[%emt 00:00:35]}
Bd6 {[%clk 00:16:15]} {[%emt 00:00:57]} 9. Re1 {[%clk 00:17:18]} {[%emt
00:00:14]} Nxc3 {[%clk 00:15:52]} {[%emt 00:00:28]} 10. bxc3 {[%clk 00:17:21]}
{[%emt 00:00:02]} O-O {[%clk 00:15:52]} {[%emt 00:00:04]} 11. Bxc6 {[%clk
00:16:20]} {[%emt 00:01:06]} Bxc6 {[%clk 00:15:53]} {[%emt 00:00:04]} 12. Qd3
{[%clk 00:15:33]} {[%emt 00:00:50]} Re8 {[%clk 00:15:20]} {[%emt 00:00:39]} 13.
Ng5 {[%clk 00:14:32]} {[%emt 00:01:05]} g6 {[%clk 00:14:34]} {[%emt 00:00:53]}
14. Qh3 {[%clk 00:14:17]} {[%emt 00:00:19]} h5 {[%clk 00:14:27]} {[%emt
00:00:12]} 15. Qe3 {[%clk 00:12:50]} {[%emt 00:01:33]} e5 {[%clk 00:13:57]}
{[%emt 00:00:36]} 16. Bd2 {[%clk 00:10:19]} {[%emt 00:02:35]} exd4 {[%clk
00:13:06]} {[%emt 00:00:56]} 17. Qxd4 {[%clk 00:10:20]} {[%emt 00:00:05]} Be7
{[%clk 00:11:39]} {[%emt 00:01:27]} 18. Qf4 {[%clk 00:09:06]} {[%emt 00:01:21]}
Qd5 {[%clk 00:10:24]} {[%emt 00:01:19]} 19. Qg3 {[%clk 00:07:22]} {[%emt
00:01:53]} Qxd2 {[%clk 00:09:50]} {[%emt 00:00:37]} 20. Ne4 {[%clk 00:02:20]}
{[%emt 00:05:07]} Bxe4 {[%clk 00:08:45]} {[%emt 00:01:10]} 21. Rxe4 {[%clk
00:02:24]} {[%emt 00:00:02]} Qxc2 {[%clk 00:08:09]} {[%emt 00:00:41]} 22. Rae1
{[%clk 00:02:08]} {[%emt 00:00:19]} h4 {[%clk 00:06:32]} {[%emt 00:01:44]} 23.
Qe3 {[%clk 00:01:47]} {[%emt 00:00:25]} Rad8 {[%clk 00:05:16]} {[%emt
00:01:21]} 24. Rxe7 {[%clk 00:00:54]} {[%emt 00:01:00]} Rxe7 {[%clk 00:04:57]}
{[%emt 00:00:24]} 25. Qxe7 {[%clk 00:00:57]} {[%emt 00:00:02]} Rd2 {[%clk
00:03:42]} {[%emt 00:01:12]} 26. Qe8+ {[%clk 00:00:55]} {[%emt 00:00:14]} Kg7
{[%clk 00:03:38]} {[%emt 00:00:08]} 27. Qe5+ {[%clk 00:00:34]} {[%emt
00:00:26]} Kh7 {[%clk 00:03:27]} {[%emt 00:00:12]} 28. Qf4 {[%clk 00:00:23]}
{[%emt 00:00:19]} Qxc3 {[%clk 00:02:56]} {[%emt 00:00:38]} 29. Qxh4+ {[%clk
00:00:12]} {[%emt 00:00:16]} Kg7 {[%clk 00:02:51]} {[%emt 00:00:07]} 30. Qe7
{[%clk 00:00:12]} {[%emt 00:00:08]} b6 {[%clk 00:02:34]} {[%emt 00:00:22]} 0-1

[Event "MCR rapid mládeže 2023 U16"]
[Site "Harachov, Czech Republic"]
[Date "2023.09.09"]
[Round "5.38"]
[White "Hamernikova, Iris"]
[Black "Zadrapova, Gabriela"]
[Result "1-0"]
[TimeControl "20min+5s/move"]
[WhiteElo "1387"]
[BlackElo "1206"]

1. e4 {[%clk 00:20:08]} {[%emt 00:00:01]} e5 {[%clk 00:20:07]} {[%emt
00:00:03]} 2. Nf3 {[%clk 00:20:12]} {[%emt 00:00:01]} Nc6 {[%clk 00:20:10]}
{[%emt 00:00:04]} 3. Nc3 {[%clk 00:20:15]} {[%emt 00:00:01]} Nf6 {[%clk
00:20:12]} {[%emt 00:00:03]} 4. Bb5 {[%clk 00:20:19]} {[%emt 00:00:01]} Bb4
{[%clk 00:20:14]} {[%emt 00:00:03]} 5. O-O {[%clk 00:20:22]} {[%emt 00:00:02]}
d6 {[%clk 00:20:17]} {[%emt 00:00:02]} 6. h3 {[%clk 00:20:26]} {[%emt
00:00:02]} O-O {[%clk 00:19:56]} {[%emt 00:00:25]} 7. d3 {[%clk 00:20:26]}
{[%emt 00:00:04]} Be6 {[%clk 00:19:49]} {[%emt 00:00:12]} 8. Bg5 {[%clk
00:20:29]} {[%emt 00:00:03]} a6 {[%clk 00:19:47]} {[%emt 00:00:07]} 9. Ba4
{[%clk 00:20:28]} {[%emt 00:00:06]} b5 {[%clk 00:19:48]} {[%emt 00:00:04]} 10.
Bb3 {[%clk 00:20:31]} {[%emt 00:00:01]} Nd4 {[%clk 00:18:57]} {[%emt 00:00:56]}
11. Nxd4 {[%clk 00:20:26]} {[%emt 00:00:11]} exd4 {[%clk 00:18:44]} {[%emt
00:00:18]} 12. Nd5 {[%clk 00:20:29]} {[%emt 00:00:02]} Ba5 {[%clk 00:16:44]}
{[%emt 00:02:03]} 13. Nxf6+ {[%emt 00:00:17]} gxf6 {[%clk 00:16:40]} {[%emt
00:00:04]} 14. Bh6 {[%clk 00:20:26]} {[%emt 00:00:02]} Re8 {[%clk 00:16:36]}
{[%emt 00:00:10]} 15. Bxe6 {[%clk 00:20:30]} {[%emt 00:00:02]} fxe6 {[%clk
00:16:36]} {[%emt 00:00:04]} 16. Qg4+ {[%clk 00:20:30]} {[%emt 00:00:04]} 1-0

[Event "MCR rapid mládeže 2023 U16"]
[Site "Harachov, Czech Republic"]
[Date "2023.09.09"]
[Round "5.40"]
[White "Sengrova, Zofie"]
[Black "Vanickova, Natalie"]
[Result "0-1"]
[TimeControl "20min+5s/move"]
[WhiteElo "1124"]
[BlackElo "1162"]

1. e4 {[%clk 00:20:07]} {[%emt 00:00:02]} d5 {[%clk 00:19:58]} {[%emt
00:00:12]} 2. exd5 {[%clk 00:20:08]} {[%emt 00:00:04]} Nf6 {[%clk 00:20:01]}
{[%emt 00:00:02]} 3. Nc3 {[%clk 00:20:06]} {[%emt 00:00:08]} Nxd5 {[%clk
00:20:01]} {[%emt 00:00:03]} 4. Nxd5 {[%clk 00:20:08]} {[%emt 00:00:03]} Qxd5
{[%clk 00:20:00]} {[%emt 00:00:07]} 5. c4 {[%clk 00:20:09]} {[%emt 00:00:04]}
Qd8 {[%clk 00:19:57]} {[%emt 00:00:08]} 6. Nf3 {[%clk 00:20:10]} {[%emt
00:00:04]} Nc6 {[%clk 00:19:59]} {[%emt 00:00:03]} 7. d4 {[%clk 00:20:16]}
{[%emt 00:00:03]} Bf5 {[%clk 00:19:57]} {[%emt 00:00:14]} 8. h3 {[%clk
00:20:12]} {[%emt 00:00:08]} e6 {[%clk 00:19:54]} {[%emt 00:00:08]} 9. Bd3
{[%clk 00:20:14]} {[%emt 00:00:02]} Nxd4 {[%clk 00:19:12]} {[%emt 00:00:48]} 10.
Qa4+ {[%clk 00:19:43]} {[%emt 00:00:35]} c6 {[%clk 00:18:51]} {[%emt 00:00:28]}
11. Nxd4 {[%clk 00:19:26]} {[%emt 00:00:20]} Bxd3 {[%clk 00:18:38]} {[%emt
00:00:19]} 12. c5 {[%clk 00:19:22]} {[%emt 00:00:09]} Bxc5 {[%clk 00:17:47]}
{[%emt 00:00:57]} 13. Nb3 {[%clk 00:19:01]} {[%emt 00:00:25]} Bb6 {[%clk
00:17:24]} {[%emt 00:00:27]} 14. g3 {[%clk 00:18:34]} {[%emt 00:00:34]} Qd5
{[%clk 00:16:51]} {[%emt 00:00:33]} 15. Rh2 {[%clk 00:18:03]} {[%emt 00:00:39]}
Qf3 {[%clk 00:16:27]} {[%emt 00:00:26]} 16. Nd2 {[%clk 00:17:43]} {[%emt
00:00:27]} Qe2# {[%emt 00:00:56]} 0-1